Cogmind - Beta 13 @@@ ROGUE MODE // 2024.07.09 @ 13:16:51 Player: MooMoo Result: Destroyed by G-47 Trooper with Particle Gun Performance ------------- Evolutions (2) 1000 Regions Visited (6) 1200 Robots Destroyed (31) 155 Value Destroyed (975) 975 Prototype IDs (0) 0 Alien Tech Used (0) 0 Bonus (200) 200 TOTAL SCORE: 3530 Bonus ------- Pacifist 200 Cogmind --------- Core Integrity 0/550 Matter 259/300 Energy 88/100 System Corruption 2% Temperature Cool (9) Movement Walking (90) Location -8/Materials Parts ------- > --- POWER (2) -------- (None) > --- PROPULSION (3) --- VSS Leg > --- UTILITY (4) ------ Improved Sensor Array Improved Targeting Computer > --- WEAPON (2) ------- Assault Cannon > --- INVENTORY (5) ---- Improved Heat Sink Medium Matter Pod (66) Particle Gun Assault Rifle Improved Datajack Peak State ------------ > --- POWER ------------ Deuterium Engine > --- PROPULSION ------- Aluminum Leg Aluminum Leg Aluminum Leg > --- UTILITY ---------- Medium Storage Unit Improved Sensor Array Improved Targeting Computer Core Shielding > --- WEAPON ----------- Minigun Katana > --- INVENTORY -------- Improved Heat Sink Small Storage Unit EM Pulse Gun Medium Laser Particle Gun Heavy Laser Assault Rifle Minigun Improved Datajack Hammer [Rating: 21] Favorites ----------- Power Light Ion Engine Engine Light Ion Engine Power Core Light Nuclear Core Propulsion Light Treads Treads Light Treads Leg Aluminum Leg Utility Improved Targeting Computer Device Sensor Array Storage Small Storage Unit Processor Improved Targeting Computer Protection Core Shielding Weapon Small Laser Energy Gun Small Laser Energy Cannon Beam Cannon Ballistic Gun Minigun Ballistic Cannon Light Cannon Slashing Weapon Katana Build | -11 -10 -9 -9 -9 -8 -8 ------- Run | Yrd Mat Mat Min Exi Min Mat Slots Evolved 4 | . . 2 . . . 2 Power 1 | . . . . . . 1 Propulsion 1 | . . 1 . . . . Utility 2 | . . 1 . . . 1 Weapon . | . . . . . . . Parts Attached 50 | 6 1 . 5 . 22 16 Power 8 | 1 . . 2 . 3 2 Engine 5 | 1 . . 1 . 1 2 Core 3 | . . . 1 . 2 . Reactor . | . . . . . . . Propulsion 15 | 2 . . 1 . 8 4 Treads 3 | 2 . . 1 . . . Leg 12 | . . . . . 8 4 Wheel . | . . . . . . . Hover . | . . . . . . . Flight . | . . . . . . . Utility 9 | 1 1 . 1 . 3 3 Device 3 | . 1 . . . 1 1 Storage 2 | 1 . . . . 1 . Processor 1 | . . . 1 . . . Hackware . | . . . . . . . Protection 3 | . . . . . 1 2 Artifact . | . . . . . . . Weapon 18 | 2 . . 1 . 8 7 Energy Gun 11 | 2 . . 1 . 6 2 Energy Cannon 1 | . . . . . 1 . Ballistic Gun 2 | . . . . . . 2 Ballistic Cannon 3 | . . . . . 1 2 Launcher . | . . . . . . . Special Weapon . | . . . . . . . Impact Weapon . | . . . . . . . Slashing Weapon 1 | . . . . . . 1 Piercing Weapon . | . . . . . . . Special Melee Weapon . | . . . . . . . Unidentified Prototypes . | . . . . . . . Corrupted Parts 2 | . . . . . 2 . System Corruption 3 | . . . . . 3 . Parts Lost 33 | . . . 4 . 14 15 Power 7 | . . . 1 . 4 2 Propulsion 12 | . . . 1 . 6 5 Utility 5 | . . . 1 . . 4 Weapon 9 | . . . 1 . 4 4 Highest Loss Streak 9 | . . . 2 . 6 9 To Critical Strikes . | . . . . . . . Average Slot Usage (%) 80 | . 94 77 85 65 85 75 Engine 6 | . 14 11 2 11 4 8 Core 3 | . . . 8 . 5 . Treads 11 | . 28 22 24 22 3 . Leg 10 | . . . . . 17 18 Device 3 | . 8 11 8 . . 3 Storage 11 | . 14 11 11 11 14 8 Processor 9 | . . . 8 11 11 9 Protection 5 | . . . . . 7 11 Energy Gun 16 | . 28 22 22 10 17 10 Energy Cannon 1 | . . . . . 3 . Naked Turns . | . . . . . . . Heaviest Build 37 | 11 12 12 14 11 25 37 Greatest Support 60 | 40 40 40 60 40 41 30 Greatest Overweight (x) 8 | . . . . . 8 6 Average Overweight (x) . | . . . . . . . Largest Inventory Capacity 10 | 8 8 8 8 8 10 10 Average Capacity 8 | 7 8 8 8 8 9 9 Most Carried 10 | 4 7 7 8 8 10 10 Average Carried 7 | 2 4 7 7 7 8 8 Final Capacity 10 | 8 8 8 8 8 10 5 Final Carried 10 | 4 7 7 6 8 10 5 Class Distribution -------------------- 64% | Mutant 35% | Scavenger-Mutant Dominant Class ---------------- Mutant | -10/Materials Mutant | -9/Materials Mutant | -9/Mines Mutant | -9/Exiles Scavenger-Mutant | -8/Mines Scavenger-Mutant | -8/Materials Resources | -11 -10 -9 -9 -9 -8 -8 ----------- Run | Yrd Mat Mat Min Exi Min Mat Matter Collected 770 | 206 . . 114 . 294 156 Remotely . | . . . . . . . Salvage Created 1166 | . . . 369 . 511 286 Parts 65 | . . . 20 . 30 15 Haulers Intercepted . | . . . . . . . Recyclers Shooed . | . . . . . . . Parts Field Recycled . | . . . . . . . Retrieved Matter . | . . . . . . . Parts Self-Destructed . | . . . . . . . Prevented . | . . . . . . . Kills | -11 -10 -9 -9 -9 -8 -8 ------- Run | Yrd Mat Mat Min Exi Min Mat Combat Hostiles Destroyed 35 | . . . 15 . 14 6 Melee 1 | . . . . . . 1 Guns 28 | . . . 15 . 8 5 Cannons 6 | . . . . . 6 . Classes Destroyed 7 | . . . 4 . 2 1 Swarmer 13 | . . . 7 . 6 . Grunt 11 | . . . 3 . 5 3 Duelist 2 | . . . . . 2 . Sentry 2 | . . . 1 . . 1 Specialist 1 | . . . . . . 1 Hunter 2 | . . . . . 1 1 Assembled 4 | . . . 4 . . . Best Kill Streak 4 | . . . 4 . 3 3 Combat Bots Only 4 | . . . 4 . 3 3 Max Kills in Single Turn 2 | . . . 2 . 2 1 Gunslinging 1 | . . . 1 . 1 . Exploded . | . . . . . . . Melee 1 | . . . . . . 1 Uniques/NPCs Destroyed . | . . . . . . . Combat | -11 -10 -9 -9 -9 -8 -8 -------- Run | Yrd Mat Mat Min Exi Min Mat Hostile Shots Fired 316 | . 1 2 78 . 118 117 Missed 80 | . 1 1 15 . 23 40 Damage Taken 3665 | . . 14 789 . 1382 1480 Core 891 | . . . 152 . 184 555 Absorbed by Shields . | . . . . . . . Redirected to Shielding 91 | . . . . . 29 62 Core Remaining (%) 72 | 100 100 . . . 16 . Volleys Fired 112 | . . . 34 . 56 22 Largest 2 | . . . 2 . 2 2 Hottest 134 | . . . 90 . 134 134 Shots Fired 208 | . . . 67 . 108 33 Gun 173 | . . . 67 . 74 32 Cannon 35 | . . . . . 34 1 Launcher . | . . . . . . . Special . | . . . . . . . Kinetic 24 | . . . . . 12 12 Thermal 154 | . . . 56 . 77 21 Explosive . | . . . . . . . Electromagnetic 30 | . . . 11 . 19 . Robot Hit Streak 14 | . . . 8 . 14 9 Robot Miss Streak 4 | . . . 3 . 4 1 Penetration Max . | . . . . . . . Secondary Targets 6 | . . . 5 . 1 . Max Gunslinging Chain 1 | . . . 1 . 1 . Shots Hit Robots 148 | . . . 44 . 75 29 Core Hits 63 | . . . 23 . 27 13 Critical Kills . | . . . . . . . Critical Parts Destroyed . | . . . . . . . Critical Strikes 3 | . . . 2 . 1 . Burn 3 | . . . 2 . 1 . Melee Attacks 7 | . . . . . . 7 Impact . | . . . . . . . Slashing 7 | . . . . . . 7 Piercing . | . . . . . . . Sneak Attacks . | . . . . . . . Combat Hostiles . | . . . . . . . Follow-up Attacks . | . . . . . . . Damage Inflicted 2206 | . . . 557 . 1113 536 Guns 1681 | . . . 557 . 723 401 Cannons 390 | . . . . . 390 . Explosions . | . . . . . . . Melee 131 | . . . . . . 131 Ramming 4 | . . . . . . 4 Kinetic 263 | . . . . . 148 115 Thermal 1553 | . . . 478 . 789 286 Explosive . | . . . . . . . Electromagnetic 255 | . . . 79 . 176 . Impact . | . . . . . . . Slashing 131 | . . . . . . 131 Piercing . | . . . . . . . Highest Corruption 7 | . . . 4 4 7 2 Average Corruption 4 | . . . 3 4 5 2 Corruption Purged . | . . . . . . . Corruption Blocked . | . . . . . . . Effects 37 | . . . 2 8 25 2 Message Errors 8 | . . . 1 2 4 1 Matter Fused 11 | . . . . 3 8 . Heat Flow Errors 4 | . . . . 1 2 1 Energy Discharges 3 | . . . . 1 2 . Data Loss (minor) 5 | . . . 1 . 4 . Data Loss (major) 3 | . . . . 1 2 . Alerts 1 | . . . . . 1 . Weapon Failures 2 | . . . . . 2 . Overload Shots . | . . . . . . . Overflow Damage 1 | . . . . . . 1 Projectiles . | . . . . . . . Explosions . | . . . . . . . Melee 1 | . . . . . . 1 Knockbacks 3 | . . . . . 3 . Impact . | . . . . . . . Kinetic 3 | . . . . . 3 . Secondary . | . . . . . . . Self-Inflicted Damage . | . . . . . . . Shots . | . . . . . . . Rammed . | . . . . . . . Targets Rammed 1 | . . . . . . 1 Kicked 1 | . . . . . . 1 Crushed . | . . . . . . . Highest Temperature 532 | . . . 406 249 333 532 Average Temperature 147 | . . . 122 130 146 199 Received Heat Transfer 1096 | . . 9 241 . 522 324 Effects 11 | . . . 2 . . 9 Shutdowns 3 | . . . 1 . . 2 Energy Bleed 2 | . . . . . . 2 Interference 2 | . . . . . . 2 Damage (minor) 1 | . . . 1 . . . Damage (major) 3 | . . . . . . 3 Siege Activations . | . . . . . . . Robots Corrupted . | . . . . . . . Combat Hostiles . | . . . . . . . Parts Fried . | . . . . . . . Impact Corruptions . | . . . . . . . Robots Melted . | . . . . . . . Combat Hostiles . | . . . . . . . Parts Melted 10 | . . . 8 . 2 . Heat Transferred 3945 | . . . 1377 . 1939 629 Parts Sabotaged . | . . . . . . . Parts Stolen . | . . . . . . . Parts Stripped . | . . . . . . . Power Chain Reactions . | . . . . . . . Alert | -11 -10 -9 -9 -9 -8 -8 ------- Run | Yrd Mat Mat Min Exi Min Mat Peak Influence 237 | . 15 20 237 . 155 90 Initial 33 | . . 5 7 . . 33 Average 63 | . 14 10 124 . 60 37 Maximum Alert Level 1 | . . . 1 . . . Low Security (%) 95 | 100 100 100 77 . 100 100 Level 1 4 | . . . 22 . . . Level 2 . | . . . . . . . Level 3 . | . . . . . . . Level 4 . | . . . . . . . Level 5 . | . . . . . . . High Security . | . . . . . . . Max Security . | . . . . . . . Squads Dispatched 4 | . 1 . . . . 3 Investigation . | . . . . . . . Extermination . | . . . . . . . Reinforcement 4 | . 1 . . . . 3 Assault . | . . . . . . . Garrison . | . . . . . . . Intercept . | . . . . . . . Searches Triggered . | . . . . . . . Construction Impeded . | . . . . . . . Haulers Reinforced . | . . . . . . . Active Scanning Responses . | . . . . . . . Cargo Convoy Interrupts . | . . . . . . . Stealth | -11 -10 -9 -9 -9 -8 -8 --------- Run | Yrd Mat Mat Min Exi Min Mat Distress Signals 1 | . . . . . . 1 Communications Jammed . | . . . . . . . Distress Signals . | . . . . . . . Times Spotted 64 | . 5 1 19 . 19 20 Peak Tracking Total 5 | . 3 2 5 . 4 5 Tactical Retreats 1 | . . . . . 1 . Traps | -11 -10 -9 -9 -9 -8 -8 ------- Run | Yrd Mat Mat Min Exi Min Mat Traps Triggered 1 | . . . . . . 1 Indirectly . | . . . . . . . Trap Hack Attempts . | . . . . . . . Triggered . | . . . . . . . Disarmed . | . . . . . . . Reprogrammed . | . . . . . . . Reused . | . . . . . . . Traps Extracted . | . . . . . . . Installed . | . . . . . . . Triggered . | . . . . . . . Machines | -11 -10 -9 -9 -9 -8 -8 ---------- Run | Yrd Mat Mat Min Exi Min Mat Machines Disabled . | . . . . . . . Max in Single Turn . | . . . . . . . Machines Repaired . | . . . . . . . Machines Dismantled . | . . . . . . . Machines Sabotaged . | . . . . . . . Overloaded Fab Kills . | . . . . . . . Hacking | -11 -10 -9 -9 -9 -8 -8 --------- Run | Yrd Mat Mat Min Exi Min Mat Machines Accessed 4 | . 1 . . 1 1 1 Terminals 3 | . 1 . . . 1 1 Fabricators . | . . . . . . . Repair Stations . | . . . . . . . Recycling Units . | . . . . . . . Scanalyzers . | . . . . . . . Garrison Access . | . . . . . . . Total Hacks 27 | . 1 . . 23 1 2 Successful 26 | . . . . 23 1 2 Failed 1 | . 1 . . . . . Catastrophic . | . . . . . . . Database Lockouts . | . . . . . . . Manual 3 | . 2 . . . . 1 Terminals 4 | . 1 . . . 1 2 Fabricators . | . . . . . . . Repair Stations . | . . . . . . . Recycling Units . | . . . . . . . Scanalyzers . | . . . . . . . Garrison Access . | . . . . . . . Terminal Hacks 25 | . . . . 23 1 1 Record 24 | . . . . 23 . 1 Zone Layout 1 | . . . . . 1 . Fabricator Hacks . | . . . . . . . Repair Station Hacks . | . . . . . . . Recycling Unit Hacks . | . . . . . . . Scanalyzer . | . . . . . . . Garrison Access Hacks . | . . . . . . . Unauthorized Hacks 1 | . . . . . . 1 Terminals 1 | . . . . . . 1 Track 1 | . . . . . . 1 Fabricators . | . . . . . . . Repair Stations . | . . . . . . . Recycling Units . | . . . . . . . Scanalyzers . | . . . . . . . Garrison Access . | . . . . . . . Data Cores Recovered . | . . . . . . . Used . | . . . . . . . Hacking Detections 2 | . 1 . . . . 1 Full Trace Events . | . . . . . . . Feedback Events . | . . . . . . . Feedback Blocked . | . . . . . . . Robot Schematics Acquired . | . . . . . . . Robots Built . | . . . . . . . Authchips . | . . . . . . . Time . | . . . . . . . Total Robot Build Rating . | . . . . . . . Part Schematics Acquired . | . . . . . . . Parts Built . | . . . . . . . Authchips . | . . . . . . . Time . | . . . . . . . Total Part Build Rating . | . . . . . . . Parts Repaired . | . . . . . . . Time . | . . . . . . . Parts Recycled . | . . . . . . . Recycled Matter . | . . . . . . . Retrieved Matter . | . . . . . . . Retrieved Components . | . . . . . . . Parts Scanalyzed . | . . . . . . . Part Schematics Acquired . | . . . . . . . Parts Damaged . | . . . . . . . Bothacking | -11 -10 -9 -9 -9 -8 -8 ------------ Run | Yrd Mat Mat Min Exi Min Mat Used RIF Installer . | . . . . . . . Robots Hacked . | . . . . . . . Non-combat . | . . . . . . . Combat . | . . . . . . . Robot Hacks Applied . | . . . . . . . Relay Couplers Released . | . . . . . . . Fabnet Peak Effective % . | . . . . . . . Robots Rewired . | . . . . . . . Allies Hacked . | . . . . . . . Hacks Repelled . | . . . . . . . Allies | -11 -10 -9 -9 -9 -8 -8 -------- Run | Yrd Mat Mat Min Exi Min Mat Total Allies . | . . . . . . . Largest Group . | . . . . . . . Highest-Rated Group . | . . . . . . . Highest-Rated Ally . | . . . . . . . Total Orders . | . . . . . . . Ally Attacks . | . . . . . . . Total Damage . | . . . . . . . Kills . | . . . . . . . Allies Corrupted . | . . . . . . . Allies Melted . | . . . . . . . Intel | -11 -10 -9 -9 -9 -8 -8 ------- Run | Yrd Mat Mat Min Exi Min Mat Robot Analysis Total . | . . . . . . . Derelict Logs Recovered 1 | . . . 1 . . . Drone Launches . | . . . . . . . Drone Recoveries . | . . . . . . . Exploration | -11 -10 -9 -9 -9 -8 -8 ------------- Run | Yrd Mat Mat Min Exi Min Mat Turns Passed 3213 | 98 180 18 602 525 1122 668 Spaces Moved 1663 | 53 102 12 283 328 596 289 Core 7 | 3 . . . . 1 3 Treads 871 | 50 102 12 283 328 96 . Legs 785 | . . . . . 499 286 Wheels . | . . . . . . . Hover . | . . . . . . . Flight . | . . . . . . . Fastest Speed 50 | 50 160 160 160 160 120 90 Average Speed 153 | 153 160 160 160 160 150 142 Slowest Speed 450 | 160 160 160 160 160 450 350 Overloaded Moves . | . . . . . . . Propulsion Burnouts . | . . . . . . . Robots Hopped . | . . . . . . . Cave-ins Triggered . | . . . . . . . Exploration Rate (%) 43 | 5 24 3 69 77 94 29 Regions Visited 6 Branch Regions 3 Pre-discovered Areas 1 | . . . . 1 . . Known Exits Taken . | . . . . . . . Unknown Exits Taken 6 | 1 1 1 1 1 1 . Scrap Searched 3 | . . . . . 3 . Spaces Dug . | . . . . . . . Terrain Destroyed . | . . . . . . . Melee . | . . . . . . . Projectile . | . . . . . . . AOE . | . . . . . . . Terrain Rammed . | . . . . . . . Walls Destroyed . | . . . . . . . Machines Disabled . | . . . . . . . Actions | -11 -10 -9 -9 -9 -8 -8 --------- Run | Yrd Mat Mat Min Exi Min Mat Total 2098 | 67 118 11 365 329 707 501 Wait 237 | 5 13 . 38 . 23 158 Move 1657 | 52 101 11 282 327 595 289 Hop . | . . . . . . . Pick Up 26 | 4 3 . 3 . 10 6 Fast Attach 26 | 6 1 . 2 . 9 8 Attach 17 | . . . 2 . 10 5 Detach 2 | . . . . 2 . . Swap 7 | . . . 1 . 3 3 Drop 6 | . . . 3 . 1 2 Fire 112 | . . . 34 . 56 22 Melee 7 | . . . . . . 7 Ram . | . . . . . . . Kick 1 | . . . . . . 1 Crush . | . . . . . . . Escape Stasis . | . . . . . . . Rewire . | . . . . . . . Trap . | . . . . . . . Miscellaneous . | . . . . . . . Route ------- -11/Scrapyard -10/Materials -9/Materials -9/Mines -9/Exiles -8/Mines -8/Materials (discovered 1 exit: Fac) History --------- Turn | Location | Event 12 | -11/Scrapyard | Discovered new exit (range 16) 99 | -11/Scrapyard | Entered Materials 264 | -10/Materials | Discovered new exit (range 10) 279 | -10/Materials | Entered another Materials area 279 | -9/Materials | Evolved 2 slots: Propulsion x1, Utility x1 292 | -9/Materials | Discovered new exit (range 5) 297 | -9/Materials | Entered Mines 314 | -9/Mines | Build established: Mutant 361 | -9/Mines | Learned location of 1 exit from Materials 422 | -9/Mines | Joined a pair of Derelicts in attacking an 0b10 outpost 749 | -9/Mines | Assembled infested the area 892 | -9/Mines | Discovered new exit (range 5) 899 | -9/Mines | Entered Exiles 943 | -9/Exiles | Met 8R-AWN 968 | -9/Exiles | Met EX-HEX 1040 | -9/Exiles | Met EX-DEC 1056 | -9/Exiles | Learned location of Zion (-7) 1144 | -9/Exiles | Visited The Gauntlet 1408 | -9/Exiles | Discovered new exit (range 12) 1424 | -9/Exiles | Entered Mines 1767 | -8/Mines | Lost 3 parts (1p2n) 1815 | -8/Mines | Core integrity fell below 50% 1858 | -8/Mines | Lost 3 parts (1n2w) 2038 | -8/Mines | Build established: Scavenger-Mutant 2284 | -8/Mines | Lost 6 parts (2p2n2w) 2462 | -8/Mines | Core integrity fell below 20% 2542 | -8/Mines | Discovered new exit (range 3) 2546 | -8/Mines | Entered Materials 2546 | -8/Materials | Evolved 2 slots: Power x1, Utility x1 2547 | -8/Materials | Identified exit to Factory 2920 | -8/Materials | Lost 6 parts (1p2n2u1w) 3135 | -8/Materials | Core integrity fell below 50% 3157 | -8/Materials | Core integrity fell below 20% 3203 | -8/Materials | Lost 9 parts (1p3n2u3w) 3214 | -8/Materials | Destroyed by G-47 Trooper with Particle Gun Last Messages --------------- 03153_ X-57 Shotgunner destroyed. 03153_ Med. Storage Unit destroyed. 03156_ Acquired VSS Leg. 03158_ Penetrated by Slug. 03158_ Knocked back. 03158_ X-57 Shotgunner destroyed. 03160_ K-01 Serf collects debris. 03166_ R-06 Scavenger collects Imp. Heat Sink. 03167_ K-01 Serf collects debris. 03169_ Acquired Assault Cannon. 03170_ U-05 Engineer builds a Wall. 03172_ System corrupted: Heat flow error (+196). 03172_ Slug penetrates Wall. 03172_ Hvy. Laser destroyed. 03172_ Assault Cannon blasted off. 03194_ M-13 Machinist repairs H-61 Shepherd. 03199_ Acquired Assault Cannon. 03204_ Critical hit (Burn: +37). 03207_ Kicked K-01 Serf. 03212_ 0 UE1>4IX,I|DZR|UAX